Cogmind - Beta 15 @@@ ROGUE MODE // 2025.05.24 @ 02:37:52 Player: BVrutally Odd Result: Escaped! Performance ------------- Evolutions (9) 4500 Regions Visited (32) 6400 Robots Destroyed (198) 990 Value Destroyed (6213) 6213 Prototype IDs (68) 1360 Alien Tech Used (0) 0 Bonus (9124) 9124 TOTAL SCORE: 28587 Bonus ------- Follower Combat Kills 224 Aligned with FarCom 300 Met Data Miner 300 Met Imprinter 300 Met Warlord at Base 500 MAIN.C Attacked Warlord 500 Found Hidden Lab 3000 Pursued by Intercept 1000 Win 3000 Cogmind --------- Core Integrity 1465/1600 Matter 290/300 Energy 364/385 System Corruption 8% Temperature Cool (12) Movement Treading (170) Location To Epsilon Eridani Parts ------- > --- POWER (2) -------- Compact Particle Reactor Reinforced Quantum Reactor > --- PROPULSION (7) --- Armored Heavy Treads Armored Heavy Treads Armored Heavy Treads > --- UTILITY (14) ----- Advanced Coolant Injector Large Storage Unit Enhanced Optical Array Advanced Signal Interpreter Advanced Targeting Computer Advanced Targeting Computer Improved Melee Analysis Suite Advanced Target Analyzer Advanced Target Analyzer Advanced Force Field > --- WEAPON (2) ------- Immobilizer Multirail > --- INVENTORY (15) --- Compact Particle Reactor Medium Storage Unit Long-range Sensor Array Improved Utility Shielding Improved Trap Extractor (4/6 Dirty Bomb) Nova Cannon Warp Cannon Linear Accelerator Fusion Bomb Launcher Vibroblade GAL Module Peak State ------------ > --- POWER ------------ Compact Particle Reactor Reinforced Quantum Reactor > --- PROPULSION ------- Armored Heavy Treads Armored Heavy Treads Armored Heavy Treads > --- UTILITY ---------- Advanced Coolant Injector Large Storage Unit Enhanced Optical Array Advanced Signal Interpreter Improved Melee Analysis Suite Experimental Phase Shifter Layered Heavy Armor Plating Medium Regenerative Plating Advanced Force Field Advanced Hacking Suite Advanced Hacking Suite System Mapper Quantum Router > --- WEAPON ----------- Multirail Multirail > --- INVENTORY -------- Compact Particle Reactor Long-range Sensor Array Improved Utility Shielding Improved Trap Extractor Nova Cannon Warp Cannon Linear Accelerator Fusion Bomb Launcher Vibroblade GAL Module [Rating: 189] Favorites ----------- Power Light Angular Momentum Engine Engine Light Angular Momentum Engine Power Core Light Fission Core Reactor Compact Particle Reactor Propulsion Light Treads Treads Light Treads Leg Makeshift Leg Flight Unit Nuclear Pulse Array Utility Large Storage Unit Device Improved Sensor Array Storage Large Storage Unit Processor Improved Signal Interpreter Hackware Advanced Hacking Suite Protection Hardened Light Armor Plating Weapon Katana Energy Gun Improved EM Shotgun Energy Cannon Particle Cannon Ballistic Gun Makeshift Shrapnel Gun Ballistic Cannon Heavy Flak Cannon Launcher Precision Grenade Launcher Special Weapon Improved Plasma Cutter Impact Weapon Heavy Flail Slashing Weapon Katana Piercing Weapon Force Lance Build | -11 -10 -10 -10 -9 -8 -7 -7 -7 -7 -6 -6 -6 -6 -6 -6 -6 -5 -5 -5 -5 -5 -5 -5 -4 -4 -4 -4 -4 -4 -3 -2 -1 ------- Run | Yrd Mat Min Exi Min Mat Fac Low Low Dat Pro Fac Was Fac Low Low Zio Pro Fac Was Fac Upp Upp War Pro Fac Was Fac Arm Lab Res Res Acc Slots Evolved 18 | . . . . . 4 2 . . . . 2 . . . . . . 2 . . . . . . 2 . . . . 2 2 2 Power 1 | . . . . . . . . . . . . . . . . . . . . . . . . . . . . . . 1 . . Propulsion 5 | . . . . . 2 2 . . . . . . . . . . . . . . . . . . . . . . . 1 . . Utility 12 | . . . . . 2 . . . . . 2 . . . . . . 2 . . . . . . 2 . . . . . 2 2 Weapon . | . . . . . . . . . . . . . . . . . . . . . . . . . . . . . . . . . Parts Attached 160 | 7 10 . . 3 32 9 3 . . 1 5 . 3 2 6 11 . 10 . 6 . 2 5 5 6 . 3 3 4 6 2 16 Power 16 | 1 . . . . 5 . . . . . 1 . . . 1 1 . 1 . . . . 1 1 2 . . . . 1 . 1 Engine 6 | 1 . . . . 4 . . . . . . . . . . . . 1 . . . . . . . . . . . . . . Core 8 | . . . . . 1 . . . . . 1 . . . 1 1 . . . . . . 1 1 2 . . . . . . . Reactor 2 | . . . . . . . . . . . . . . . . . . . . . . . . . . . . . . 1 . 1 Propulsion 45 | 2 2 . . 2 14 5 . . . . 1 . 1 . 2 3 . 3 . 2 . . 1 . 1 . 1 . . 2 . 3 Treads 24 | 2 2 . . 2 12 . . . . . . . . . 2 1 . . . . . . . . . . . . . . . 3 Leg 2 | . . . . . . . . . . . . . . . . 2 . . . . . . . . . . . . . . . . Wheel . | . . . . . . . . . . . . . . . . . . . . . . . . . . . . . . . . . Hover . | . . . . . . . . . . . . . . . . . . . . . . . . . . . . . . . . . Flight 19 | . . . . . 2 5 . . . . 1 . 1 . . . . 3 . 2 . . 1 . 1 . 1 . . 2 . . Utility 59 | 2 1 . . 1 5 3 1 . . . 3 . 2 2 1 5 . 6 . 3 . . 2 3 2 . 2 . 2 2 2 9 Device 16 | 1 . . . . 1 1 1 . . . . . 1 1 . 2 . . . . . . 2 1 . . 1 . . 2 . 2 Storage 3 | 1 1 . . . 1 . . . . . . . . . . . . . . . . . . . . . . . . . . . Processor 14 | . . . . . 1 1 . . . . 1 . 1 . . 1 . 2 . . . . . . 1 . . . . . 1 5 Hackware 15 | . . . . . . 1 . . . . 2 . . . . 1 . 4 . 3 . . . . 1 . 1 . 1 . 1 . Protection 11 | . . . . 1 2 . . . . . . . . 1 1 1 . . . . . . . 2 . . . . 1 . . 2 Artifact . | . . . . . . . . . . . . . . . . . . . . . . . . . . . . . . . . . Weapon 40 | 2 7 . . . 8 1 2 . . 1 . . . . 2 2 . . . 1 . 2 1 1 1 . . 3 2 1 . 3 Energy Gun 11 | 1 5 . . . 2 . . . . . . . . . 2 . . . . . . . . . . . . . . . . 1 Energy Cannon 5 | . . . . . 1 . . . . . . . . . . . . . . . . 1 . 1 . . . . 2 . . . Ballistic Gun 6 | 1 . . . . 1 . . . . . . . . . . 2 . . . . . . . . . . . . . . . 2 Ballistic Cannon 1 | . . . . . . . . . . . . . . . . . . . . 1 . . . . . . . . . . . . Launcher 9 | . 1 . . . 2 1 2 . . . . . . . . . . . . . . 1 . . . . . 2 . . . . Special Weapon 3 | . 1 . . . . . . . . 1 . . . . . . . . . . . . 1 . . . . . . . . . Impact Weapon 1 | . . . . . 1 . . . . . . . . . . . . . . . . . . . . . . . . . . . Slashing Weapon 2 | . . . . . 1 . . . . . . . . . . . . . . . . . . . . . . . . 1 . . Piercing Weapon 2 | . . . . . . . . . . . . . . . . . . . . . . . . . 1 . . 1 . . . . Special Melee Weapon . | . . . . . . . . . . . . . . . . . . . . . . . . . . . . . . . . . Unidentified Prototypes 23 | . 1 . . . 5 1 . . . . 1 . . . . 1 . . . . . . 2 1 2 . . 1 4 2 . 2 Corrupted Parts 1 | . . . . 1 . . . . . . . . . . . . . . . . . . . . . . . . . . . . System Corruption 4 | . . . . 4 . . . . . . . . . . . . . . . . . . . . . . . . . . . . Parts Lost 27 | . 2 . . 1 1 . . . . 1 . . . 3 8 . . . . . . . . 2 . . . . . 2 . 7 Power 2 | . . . . . 1 . . . . . . . . . . . . . . . . . . 1 . . . . . . . . Propulsion 9 | . . . . . . . . . . 1 . . . 1 5 . . . . . . . . . . . . . . 2 . . Utility 11 | . . . . . . . . . . . . . . 1 2 . . . . . . . . 1 . . . . . . . 7 Weapon 5 | . 2 . . 1 . . . . . . . . . 1 1 . . . . . . . . . . . . . . . . . Highest Loss Streak 3 | . 1 . . 1 1 . . . . 1 . . . 3 2 . . . . . . . . 2 . . . . . 1 . 3 To Critical Strikes 1 | . 1 . . . . . . . . . . . . . . . . . . . . . . . . . . . . . . . Average Backups 14 | 4 12 13 13 14 21 15 13 13 14 13 12 14 14 13 11 14 14 12 13 12 13 13 12 12 12 13 12 13 12 11 9 8 Power . | . . . . . . . . . . . . . . 1 . 1 1 . . . . . . . . . . . . . 1 1 Propulsion 2 | 2 3 4 4 4 4 . 1 1 1 . . 1 . . . . . 1 2 1 2 2 2 3 3 3 3 3 3 1 . . Utility 7 | . 2 4 4 4 10 10 9 9 9 9 8 9 9 8 7 7 8 6 7 7 7 7 7 7 6 7 7 8 8 6 5 3 Weapon 3 | . 5 5 5 4 5 3 2 2 3 2 3 3 3 2 2 4 5 3 3 3 3 3 2 1 2 2 1 1 1 2 3 4 Tool/Special . | . . . . . . . . . . . . . . . . . . . . . . . . . . . . . . . . . Unused Backups 35 | . 7 . . . 5 5 . . . . . . 2 . 2 . . 5 1 . . . 2 . . . . . . . . 6 Power 2 | . 1 . . . . . . . . . . . . . . . . . . . . . . . . . . . . . . 1 Propulsion 8 | . 4 . . . 2 . . . . . . . . . . . . 1 1 . . . . . . . . . . . . . Utility 17 | . . . . . 2 4 . . . . . . 2 . 2 . . 2 . . . . 2 . . . . . . . . 3 Weapon 8 | . 2 . . . 1 1 . . . . . . . . . . . 2 . . . . . . . . . . . . . 2 Tool/Special . | . . . . . . . . . . . . . . . . . . . . . . . . . . . . . . . . . Average Slot Usage (%) 88 | . 99 100 100 100 99 91 92 92 92 92 91 93 92 90 65 79 100 79 76 79 82 82 87 86 83 84 84 83 86 83 78 79 Engine 4 | . 14 14 14 14 7 . . . . . . . . . . . . 4 5 5 5 5 4 . . . . . . . . 1 Core 2 | . . . . . 1 7 7 7 7 7 6 6 6 6 2 6 6 . . . . . . 5 5 5 5 5 5 . . . Treads 14 | . 28 28 28 28 35 . . . . . . . . . 4 13 20 2 . . . . . . . . . . . . . 5 Flight 13 | . . . . . . 45 46 46 46 45 40 40 40 39 14 6 6 14 17 20 23 23 23 23 21 21 21 21 21 26 21 10 Device 7 | . 14 14 14 9 8 3 7 7 7 7 1 . . 6 5 6 6 5 5 5 5 5 5 4 5 5 5 9 7 4 4 7 Storage 7 | . 14 14 14 14 9 7 7 7 7 7 6 6 6 6 6 6 6 5 5 5 5 5 5 5 5 5 5 5 5 4 4 4 Processor 7 | . . . . . 8 14 7 7 7 7 11 13 12 13 10 6 6 5 5 5 5 5 5 5 9 10 10 10 10 9 11 18 Hackware 11 | . . . . . . 3 7 7 7 7 19 20 20 10 6 10 13 24 29 29 29 29 29 28 26 26 26 26 26 23 24 12 Protection 3 | . . . . 4 9 . . . . . . . . . 4 6 5 2 . . . . . . 4 5 4 . 1 3 3 5 Energy Gun 5 | . 21 28 28 28 7 . . . . . . . . . 1 . . . . . . . . . . . . . . . . . Energy Cannon 1 | . . . . . 6 . . . . . . . . . . . . . . . . . . 2 . . . . . . . 1 Ballistic Gun 1 | . 5 . . . 1 . . . . . . . . . . 4 10 . . . . . . . . . . . . . . 4 Slashing Weapon 3 | . . . . . 2 6 6 6 7 6 6 6 6 5 4 5 2 5 5 5 5 4 5 5 3 . . . . 2 4 . Peak Build Rating 189 | 7 14 14 15 15 37 45 47 45 40 47 52 50 55 61 60 57 57 78 78 85 87 89 104 101 109 109 124 125 130 142 140 189 Average Rating 57 | 5 11 14 14 14 29 39 40 40 40 40 48 50 52 53 37 42 56 71 77 81 87 87 96 94 100 109 112 117 122 131 138 159 On Entrance 63 | . 7 14 14 15 15 32 41 40 40 40 41 50 50 54 51 33 56 56 78 77 85 87 87 96 88 109 109 119 117 125 116 140 Naked Turns . | . . . . . . . . . . . . . . . . . . . . . . . . . . . . . . . . . Heaviest Build 122 | 15 33 32 32 37 106 29 30 30 30 30 30 29 30 47 44 42 42 40 32 32 32 39 34 43 39 39 41 41 42 49 45 122 Greatest Support 180 | 40 40 40 40 40 85 39 30 30 30 31 31 31 32 32 40 68 68 68 39 39 36 36 40 40 42 42 43 43 43 51 51 180 Greatest Overweight (x) 9 | . . . . . 1 1 . . 1 1 . . 1 1 9 2 . 3 . . . 1 . 1 2 . . . . 1 . 1 Average Overweight (x) . | . . . . . . . . . . . . . . . . . . . . . . . . . . . . . . . . . Largest Inventory Capacity 25 | 8 15 15 15 15 25 25 15 15 15 15 15 15 15 15 15 15 15 15 15 15 15 15 15 15 15 15 15 15 15 15 15 15 Average Capacity 16 | 7 14 15 15 15 23 15 15 15 15 15 15 15 15 15 15 15 15 15 15 15 15 15 15 15 15 15 15 15 15 15 15 15 Most Carried 25 | 6 15 13 14 15 25 24 14 15 15 15 15 15 15 14 15 15 15 15 15 15 15 15 15 15 15 15 15 15 15 15 12 11 Average Carried 15 | 4 12 13 13 14 21 14 13 14 15 14 13 15 14 13 11 14 15 14 14 14 15 15 14 14 14 15 14 15 14 13 9 9 Final Capacity 25 | 8 15 15 15 15 25 15 15 15 15 15 15 15 15 15 15 15 15 15 15 15 15 15 15 15 15 15 15 15 15 15 15 15 Final Carried 25 | 6 13 13 14 15 25 15 14 15 15 14 15 15 14 13 13 15 15 15 14 15 15 15 15 15 15 15 15 15 15 13 9 11 Class Distribution -------------------- 36% | Mutant 13% | Scavenger-Mutant 12% | Wizard-Sprinter 11% | Wizard-Scout 8% | Hacker-Mutant 5% | Sprinter 3% | Hacker-Sprinter Dominant Class ---------------- Mutant | -10/Materials Mutant | -10/Mines Mutant | -10/Exiles Mutant | -9/Mines Mutant | -8/Materials Sprinter | -7/Factory Sprinter | -7/Lower Caves Sprinter | -7/Lower Caves Mutant | -7/Data Miner Sprinter | -6/Proximity Caves Hacker-Sprinter | -6/Factory Hacker-Sprinter | -6/Waste Hacker-Sprinter | -6/Factory Hacker-Scout | -6/Lower Caves Scavenger-Mutant | -6/Lower Caves Hacker-Mutant | -6/Zion Scavenger-Mutant | -5/Proximity Caves Hacker-Mutant | -5/Factory Hacker-Mutant | -5/Waste Wizard-Sprinter | -5/Factory Wizard-Sprinter | -5/Upper Caves Wizard-Sprinter | -5/Upper Caves Wizard-Sprinter | -5/Warlord Wizard-Sprinter | -4/Proximity Caves Wizard-Scout | -4/Factory Wizard-Scout | -4/Waste Wizard-Scout | -4/Factory Wizard-Scout | -4/Armory Wizard-Sprinter | -4/Lab Wizard-Scout | -3/Research Wizard-Scout | -2/Research Wizard-Mutant | -1/Access Resources | -11 -10 -10 -10 -9 -8 -7 -7 -7 -7 -6 -6 -6 -6 -6 -6 -6 -5 -5 -5 -5 -5 -5 -5 -4 -4 -4 -4 -4 -4 -3 -2 -1 ----------- Run | Yrd Mat Min Exi Min Mat Fac Low Low Dat Pro Fac Was Fac Low Low Zio Pro Fac Was Fac Upp Upp War Pro Fac Was Fac Arm Lab Res Res Acc Matter Collected 4607 | 312 201 . . 25 635 160 118 95 . 29 103 . 135 299 392 120 54 116 . 70 30 75 80 164 80 . 123 60 . 197 . 934 Remotely . | . . . . . . . . . . . . . . . . . . . . . . . . . . . . . . . . . Salvage Created 8842 | 251 1120 . . 120 1840 282 387 106 . 50 12 . 376 269 375 . . 196 . 30 169 188 . 65 103 . 18 . . 310 . 2575 Parts 431 | 15 76 . . 6 100 14 4 6 . 7 2 . 18 15 15 . . 8 . 4 3 5 . 5 2 . 2 . . 15 . 109 Haulers Intercepted 12 | . 1 . . . 6 2 . . . . . . . . . . . 2 . . . . . . . . . . . 1 . . Recyclers Shooed 7 | . 1 . . . 3 . . . . . . . . . . . . . . . . . . . . . . . . . . 3 Parts Field Recycled . | . . . . . . . . . . . . . . . . . . . . . . . . . . . . . . . . . Retrieved Matter . | . . . . . . . . . . . . . . . . . . . . . . . . . . . . . . . . . Parts Self-Destructed 53 | . . . . . . . 3 4 . 2 . . . 10 22 . 1 . . . . 4 . 7 . . . . . . . . Prevented 7 | . . . . . . . . 4 . . . . . . . . . . . . . . . 3 . . . . . . . . Kills | -11 -10 -10 -10 -9 -8 -7 -7 -7 -7 -6 -6 -6 -6 -6 -6 -6 -5 -5 -5 -5 -5 -5 -5 -4 -4 -4 -4 -4 -4 -3 -2 -1 ------- Run | Yrd Mat Min Exi Min Mat Fac Low Low Dat Pro Fac Was Fac Low Low Zio Pro Fac Was Fac Upp Upp War Pro Fac Was Fac Arm Lab Res Res Acc Combat Hostiles Destroyed 111 | . 23 . . 2 24 . 4 4 . 4 . . . 11 9 . . . . . . 1 . 3 . . . . . 1 . 25 Melee 6 | . . . . . . . . 1 . . . . . . 2 . . . . . . . . 3 . . . . . . . . Guns 50 | . 21 . . 2 7 . . . . . . . . . 4 . . . . . . . . . . . . . . . . 16 Cannons 15 | . . . . . 10 . . . . . . . . . . . . . . . . 1 . . . . . . . 1 . 3 AOE 37 | . 2 . . . 6 . 4 3 . 4 . . . 11 3 . . . . . . . . . . . . . . . . 4 Classes Destroyed 18 | 3 7 . . 1 1 . . 1 . . . . . 2 1 . . . . . . . . . . . . . . . . 2 Worker 18 | 1 1 . . . 6 2 . . . . . . 1 . . . . . . . . . . . 1 . 2 . . . . 4 Builder 9 | . 1 . . . 1 . . . . . . . 3 . . . . . . . . . . . . . . . . 2 . 2 Tunneler 7 | 6 . . . . 1 . . . . . . . . . . . . . . . . . . . . . . . . . . . Hauler 12 | . 1 . . . 6 2 . . . . . . . . . . . 2 . . . . . . . . . . . 1 . . Recycler 15 | 1 3 . . . 3 1 . . . . . . 2 . . . . . . . . . . . . . . . . . . 5 Minesweeper 2 | . . . . . . . . . . . . . . 1 . . . . . . . 1 . . . . . . . . . . Operator 9 | . 5 . . . 2 1 . . . . 1 . . . . . . . . . . . . . . . . . . . . . Watcher 15 | . 1 . . . 4 2 . . . . . . . . . . . 1 . 1 . . . . 2 . . . . 3 . 1 Swarmer 36 | . 11 . . . 3 . . . . 3 . . . 11 1 . . . . . . . . 3 . . . . . . . 4 Grunt 38 | . 9 . . . 13 . 4 3 . . . . . . 5 . . . . . . 1 . . . . . . . . . 3 Brawler 1 | . . . . . 1 . . . . . . . . . . . . . . . . . . . . . . . . . . . Duelist 1 | . . . . . . . . . . . . . . . 1 . . . . . . . . . . . . . . . . . Sentry 10 | . . . . 2 7 . . . . 1 . . . . . . . . . . . . . . . . . . . . . . Hunter 6 | . . . . . . . . . . . . . . . . . . . . . . . . . . . . . . . . 6 Programmer 9 | . . . . . . . . 1 . . . . . . . . . . . . . . . . . . . . . . . 8 Behemoth 2 | . . . . . . . . . . . . . . . . . . . . . . . . . . . . . . . . 2 Tracker 3 | . . . . . . . . . . . . . . . . . . . . . . . . . . . . . . 1 . 2 Subdweller 3 | . 3 . . . . . . . . . . . . . . . . . . . . . . . . . . . . . . . Decomposer 1 | . . . . . . . . . . . . . . . . . . . . . 1 . . . . . . . . . . . Packrat 2 | . . . . . . . . . . . . . . 1 . . . . . . . 1 . . . . . . . . . . Samaritan 2 | . . . . . . . . . . . . . . 2 . . . . . . . . . . . . . . . . . . Savage 2 | . . . . . . . . . . . . . . . 2 . . . . . . . . . . . . . . . . . Best Kill Streak 11 | 3 6 . . 2 4 4 4 2 . 3 1 . 3 11 4 . . 1 . 1 . 1 . 3 1 . 1 . . 2 . 6 Combat Bots Only 11 | . 6 . . 2 3 . 4 2 . 3 . . . 11 4 . . . . . . 1 . 3 . . . . . 1 . 5 Max Kills in Single Turn 4 | 1 3 . . 1 3 1 2 1 . 2 1 . 1 4 1 . . 1 . 1 1 1 . 1 1 . 1 . . 1 . 4 Gunslinging 1 | . 1 . . . . . . . . . . . . . . . . . . . . . . . . . . . . . . . Exploded 4 | . 1 . . . 3 . 2 1 . 2 . . . 4 1 . . . . . . . . . . . . . . . . 4 Melee 1 | . . . . . . . . 1 . . . . . . 1 . . . . . . . . 1 . . . . . . . . Uniques/NPCs Destroyed . | . . . . . . . . . . . . . . . . . . . . . . . . . . . . . . . . . Combat | -11 -10 -10 -10 -9 -8 -7 -7 -7 -7 -6 -6 -6 -6 -6 -6 -6 -5 -5 -5 -5 -5 -5 -5 -4 -4 -4 -4 -4 -4 -3 -2 -1 -------- Run | Yrd Mat Min Exi Min Mat Fac Low Low Dat Pro Fac Was Fac Low Low Zio Pro Fac Was Fac Upp Upp War Pro Fac Was Fac Arm Lab Res Res Acc Hostile Shots Fired 794 | . 88 . . 14 116 . 3 5 . 37 3 . . 24 83 . . . . . . 13 . 46 . . 29 27 . 25 . 281 Missed 285 | . 23 . . 3 34 . 1 . . 19 2 . . 8 35 . . . . . . 5 . 24 . . 20 21 . 9 . 81 Hits 509 | . 65 . . 11 82 . 2 5 . 18 1 . . 16 48 . . . . . . 8 . 22 . . 9 6 . 16 . 200 Melee 16 | . . . . . . . . . . . . . . . 16 . . . . . . . . . . . . . . . . . Projectile 493 | . 65 . . 11 82 . 2 5 . 18 1 . . 16 32 . . . . . . 8 . 22 . . 9 6 . 16 . 200 AOE 1 | . . . . . . . . . . . . . . . . . . . . . . . . . . . . 1 . . . . Critical Strikes 21 | . 2 . . 1 3 . . 1 . . . . . 1 4 . . . . . . 1 . 1 . . . . . 3 . 4 Damage Taken 8289 | . 925 . . 165 1177 . 37 74 . 155 16 . . 239 1272 . . . . . . 168 . 367 . . 182 89 . 392 . 3031 Core 929 | . 184 . . . 103 . . 14 . 66 . . . 13 327 . . . . . . . . 43 . . 17 27 . . . 135 Absorbed by Shields 321 | . . . . . . . . . . . . . . . . . . . . . . . . . . . . . . . . 321 Reduced by Siege Mode 144 | . . . . . . . . . . . . . . . . . . . . . . . . . . . . . . . . 144 Regen/Repaired (Parts) 771 | . . . . . . . . . . . . . . . . . . . . 13 . . 31 . 499 . . . . 12 14 202 Core Remaining (%) 83 | 100 . . . 26 81 . . . . 88 . . . . . . 60 . . . . . . 95 . . . . 96 100 100 91 Volleys Fired 368 | 14 63 . . 5 121 . 3 5 . 6 . . . 8 41 . 2 . . . . 5 . 12 . . 1 . . 3 . 79 Largest 2 | 2 2 . . 2 2 . 2 1 . 2 . . . 2 1 . 2 . . . . 1 . 1 . . 1 . . 1 . 2 Hottest 129 | 70 101 . . 105 129 . 72 36 . 72 . . . 72 81 . 48 . . . . 75 . 90 . . 46 . . 100 . 100 Shots Fired 591 | 28 120 . . 10 205 . 6 5 . 8 . . . 13 40 . 4 . . . . 4 . 12 . . 1 . . 3 . 132 Gun 405 | 28 116 . . 10 113 . . . . . . . . . 29 . 4 . . . . . . . . . . . . . . 105 Cannon 130 | . . . . . 88 . . . . . . . . . . . . . . . . 3 . 10 . . . . . 3 . 26 Launcher 48 | . 1 . . . 4 . 6 5 . 8 . . . 13 6 . . . . . . 1 . 2 . . 1 . . . . 1 Special 8 | . 3 . . . . . . . . . . . . . 5 . . . . . . . . . . . . . . . . . Kinetic 194 | 14 22 . . . 32 . . . . . . . . . 17 . 4 . . . . . . . . . . . . . . 105 Thermal 245 | 14 30 . . 5 145 . . . . . . . . . 12 . . . . . . . . 10 . . . . . 3 . 26 Explosive 44 | . 1 . . . 4 . 6 5 . 8 . . . 13 6 . . . . . . . . . . . . . . . . 1 Electromagnetic 103 | . 67 . . 5 24 . . . . . . . . . . . . . . . . 4 . 2 . . 1 . . . . . Robot Hit Streak 38 | 7 38 . . 8 10 . . 6 . 7 . . . 5 15 . 2 . . . . 2 . . . . . . . 5 . 20 Robot Miss Streak 9 | 3 5 . . 1 9 . . . . 1 . . . . 2 . 6 . . . . 1 . . . . . . . . . 5 Penetration Max 1 | . . . . . . . . . . . . . . . . . . . . . . . . . . . . . . . . 1 Secondary Targets 8 | . 4 . . 1 . . . . . . . . . . . . . . . . . . . . . . . . . . . 3 Max Gunslinging Chain 1 | . 1 . . 1 . . . . . . . . . . . . . . . . . . . . . . . . . . . 1 Shots Hit Robots 490 | 18 89 . . 8 122 11 7 6 . 4 1 . 13 13 43 . 3 8 . 2 5 4 . 7 7 . 2 . . 12 . 105 Core Hits 342 | 9 54 . . 4 67 6 10 6 . 10 . . 6 22 19 . 1 4 . 1 4 5 . 3 3 . 2 . . 8 . 98 Critical Kills 10 | . . . . . 1 . . . . . . . . . . . . . . . . . . . . . . . . . . 9 Critical Parts Destroyed 12 | . . . . . 1 . . . . . . . . . . . . . . . . . . . . . . . . . . 11 Critical Strikes 29 | . 1 . . . 2 . . . . . . . . 1 . . . 1 . . . . . 2 1 . . . . 1 . 20 Burn 1 | . 1 . . . . . . . . . . . . . . . . . . . . . . . . . . . . . . . Meltdown 4 | . . . . . 1 . . . . . . . . . . . . . . . . . . . . . . . . . . 3 Destroy 18 | . . . . . 1 . . . . . . . . . . . . . . . . . . . . . . . . . . 17 Sever 6 | . . . . . . . . . . . . . . 1 . . . 1 . . . . . 2 1 . . . . 1 . . Melee Attacks 279 | . . . . . 19 24 7 5 . 3 4 . 19 14 16 . 5 20 . 19 5 8 . 13 15 . 21 9 . 42 2 9 Impact 1 | . . . . . 1 . . . . . . . . . . . . . . . . . . . . . . . . . . . Slashing 234 | . . . . . 18 24 7 5 . 3 4 . 19 14 16 . 5 20 . 19 5 8 . 13 11 . . . . 32 2 9 Piercing 44 | . . . . . . . . . . . . . . . . . . . . . . . . . 4 . 21 9 . 10 . . Sneak Attacks 38 | . . . . . 4 5 . . . . . . 7 5 1 . . 3 . 1 1 2 . . 2 . 1 . . 3 . 3 Combat Hostiles . | . . . . . . . . . . . . . . . . . . . . . . . . . . . . . . . . . Follow-up Attacks . | . . . . . . . . . . . . . . . . . . . . . . . . . . . . . . . . . Damage Inflicted 18993 | 253 1606 . . 167 3363 613 760 429 . 289 46 . 755 1410 1487 . 30 385 . 111 326 234 . 219 327 . 473 . . 825 . 4885 Guns 6507 | 253 1431 . . 167 1189 . . . . . . . . . 448 . 30 . . . . . . . . . . . . . . 2989 Cannons 2453 | . . . . . 1188 . . . . . . . . . . . . . . . . 66 . . . . . . . 130 . 1069 Explosions 4003 | . 171 . . . 628 . 392 363 . 289 . . . 845 621 . . . . . . 38 . . . . 250 . . . . 406 Melee 6006 | . . . . . 338 613 368 66 . . 46 . 755 565 418 . . 385 . 111 326 130 . 219 327 . 223 . . 695 . 421 Ramming 24 | . 4 . . . 20 . . . . . . . . . . . . . . . . . . . . . . . . . . . Kinetic 3885 | 114 225 . . . 267 . . . . . . . . . 260 . 30 . . . . . . . . . . . . . . 2989 Thermal 4258 | 139 470 . . 104 1908 . . . . . . . . . 188 . . . . . . . . . . . 250 . . 130 . 1069 Explosive 3449 | . . . . . 533 . 392 363 . 289 . . . 845 621 . . . . . . . . . . . . . . . . 406 Electromagnetic 1371 | . 907 . . 63 297 . . . . . . . . . . . . . . . . 104 . . . . . . . . . . Impact . | . . . . . . . . . . . . . . . . . . . . . . . . . . . . . . . . . Slashing 5424 | . . . . . 338 613 368 66 . . 46 . 755 565 418 . . 385 . 111 326 130 . 219 221 . . . . 442 . 421 Piercing 582 | . . . . . . . . . . . . . . . . . . . . . . . . . 106 . 223 . . 253 . . Highest Corruption 28 | . . . . 4 . . . . . . 5 15 15 15 28 28 . . 9 9 9 9 9 . . 5 5 5 5 4 . 8 Average Corruption 11 | . . . . 4 . . . . . . 5 7 15 15 20 28 . . 9 9 9 9 9 . . 5 5 5 5 2 . 4 Corruption Purged . | . . . . . . . . . . . . . . . . . . . . . . . . . . . . . . . . . Corruption Blocked . | . . . . . . . . . . . . . . . . . . . . . . . . . . . . . . . . . Effects 169 | . . . . . . . . . . . 1 1 18 17 52 4 . . . 20 8 11 1 . . 1 13 10 2 . . 10 Message Errors 47 | . . . . . . . . . . . . . 4 5 11 3 . . . 6 3 6 . . . . 3 5 . . . 1 Matter Fused 26 | . . . . . . . . . . . . . 4 4 11 . . . . . . 1 . . . . 2 . 1 . . 3 Heat Flow Errors 20 | . . . . . . . . . . . . . 3 1 5 . . . . 4 1 1 . . . . 2 1 . . . 2 Energy Discharges 29 | . . . . . . . . . . . 1 . 2 5 7 1 . . . 2 2 2 1 . . . 3 3 . . . . Parts Rejected 3 | . . . . . . . . . . . . . . . . . . . . . . . . . . 1 1 . . . . 1 Parts Fused 1 | . . . . . . . . . . . . . . . 1 . . . . . . . . . . . . . . . . . Data Loss (minor) 23 | . . . . . . . . . . . . . 3 . 10 . . . . 6 . . . . . . 2 1 . . . 1 Data Loss (major) 13 | . . . . . . . . . . . . . 1 1 6 . . . . 2 1 . . . . . . . 1 . . 1 Misfires 1 | . . . . . . . . . . . . . . . . . . . . . . . . . . . . . . . . 1 Alerts 3 | . . . . . . . . . . . . . 1 1 . . . . . . 1 . . . . . . . . . . . Misdirections 1 | . . . . . . . . . . . . 1 . . . . . . . . . . . . . . . . . . . . Weapon Failures 2 | . . . . . . . . . . . . . . . 1 . . . . . . 1 . . . . . . . . . . Overload Shots . | . . . . . . . . . . . . . . . . . . . . . . . . . . . . . . . . . Overflow Damage 1123 | . 2 . . . 59 110 116 . . . 36 . 123 271 31 . . . . . 50 . . 7 44 . 93 . . 8 . 173 Projectiles 47 | . . . . . 17 . . . . . . . . . . . . . . . . . . . . . . . . . . 30 Explosions 94 | . 2 . . . . . . . . . . . . 45 . . . . . . . . . . . . 47 . . . . . Melee 982 | . . . . . 42 110 116 . . . 36 . 123 226 31 . . . . . 50 . . 7 44 . 46 . . 8 . 143 Knockbacks 1 | . . . . . 1 . . . . . . . . . . . . . . . . . . . . . . . . . . . Impact 1 | . . . . . 1 . . . . . . . . . . . . . . . . . . . . . . . . . . . Kinetic . | . . . . . . . . . . . . . . . . . . . . . . . . . . . . . . . . . Secondary . | . . . . . . . . . . . . . . . . . . . . . . . . . . . . . . . . . Self-Inflicted Damage 195 | . 96 . . . 38 . . . . . . . . . 26 . . . . . . . . 35 . . . . . . . . Shots 7 | . 3 . . . 1 . . . . . . . . . 1 . . . . . . . . 2 . . . . . . . . Rammed 5 | . 2 1 . . 2 . . . . . . . . . . . . . . . . . . . . . . . . . . . Targets Rammed 6 | . 2 1 . . 3 . . . . . . . . . . . . . . . . . . . . . . . . . . . Kicked . | . . . . . . . . . . . . . . . . . . . . . . . . . . . . . . . . . Crushed 1 | . . . . . 1 . . . . . . . . . . . . . . . . . . . . . . . . . . . Highest Temperature 418 | 27 286 . . 268 126 90 150 191 . 102 63 72 244 199 259 . . . . 241 249 113 . 164 418 . 238 202 . 225 . 349 Average Temperature 58 | 11 60 . . 139 24 22 56 69 . 34 20 36 37 48 80 . . . . 111 124 48 . 73 199 . 111 92 . 50 . 94 Received Heat Transfer 1181 | . 144 . . 63 522 . 18 9 . 48 . . . . 198 . . . . . . 63 . . . . 27 36 . . . 53 Effects 6 | . 3 . . . . . . . . . . . . . . . . . . . . . . . 1 . 1 . . . . 1 Energy Bleed 4 | . 3 . . . . . . . . . . . . . . . . . . . . . . . . . 1 . . . . . Interference 1 | . . . . . . . . . . . . . . . . . . . . . . . . . . . . . . . . 1 Damage (minor) 1 | . . . . . . . . . . . . . . . . . . . . . . . . . 1 . . . . . . . Siege Activations 3 | . . . . . . . . . . . . . . . . . . . . . . . . . . . . . . . . 3 Total Turns 119 | . . . . . . . . . . . . . . . . . . . . . . . . . . . . . . . . 119 Longest Duration 62 | . . . . . . . . . . . . . . . . . . . . . . . . . . . . . . . . 62 Martial Activations . | . . . . . . . . . . . . . . . . . . . . . . . . . . . . . . . . . Shielding Activations . | . . . . . . . . . . . . . . . . . . . . . . . . . . . . . . . . . Robots Disrupted . | . . . . . . . . . . . . . . . . . . . . . . . . . . . . . . . . . Combat Hostiles . | . . . . . . . . . . . . . . . . . . . . . . . . . . . . . . . . . Robots Corrupted . | . . . . . . . . . . . . . . . . . . . . . . . . . . . . . . . . . Combat Hostiles . | . . . . . . . . . . . . . . . . . . . . . . . . . . . . . . . . . Parts Fried 4 | . 2 . . 1 1 . . . . . . . . . . . . . . . . . . . . . . . . . . . Impact Corruptions 1 | . . . . . 1 . . . . . . . . . . . . . . . . . . . . . . . . . . . Robots Melted 5 | . . . . . 2 . . . . . . . . . . . . . . . . . . . . . . . . . . 3 Combat Hostiles 3 | . . . . . 1 . . . . . . . . . . . . . . . . . . . . . . . . . . 2 Parts Melted 17 | . 4 . . . 2 . . . . . . . . . . . . . . . . . . . . . . . . 1 . 10 Heat Transferred 5914 | 407 1088 . . 125 3139 . . . . . . . . . 296 . . . . . . . . . . . 200 . . 111 . 548 Parts Sabotaged . | . . . . . . . . . . . . . . . . . . . . . . . . . . . . . . . . . Parts Stolen . | . . . . . . . . . . . . . . . . . . . . . . . . . . . . . . . . . Parts Stripped . | . . . . . . . . . . . . . . . . . . . . . . . . . . . . . . . . . Power Chain Reactions 6 | . 4 . . . 2 . . . . . . . . . . . . . . . . . . . . . . . . . . . Alert | -11 -10 -10 -10 -9 -8 -7 -7 -7 -7 -6 -6 -6 -6 -6 -6 -6 -5 -5 -5 -5 -5 -5 -5 -4 -4 -4 -4 -4 -4 -3 -2 -1 ------- Run | Yrd Mat Min Exi Min Mat Fac Low Low Dat Pro Fac Was Fac Low Low Zio Pro Fac Was Fac Upp Upp War Pro Fac Was Fac Arm Lab Res Res Acc Maximum Alert Level 1 | . 1 . . . 1 . . . . . . . . . . . . . . . . . . . . . 1 . . . . 1 Low Security (%) 86 | 100 88 100 . 100 72 100 . . . . 100 100 100 . . . . 100 100 100 . . . . 100 100 66 100 . 100 100 87 Level 1 13 | . 11 . . . 27 . . . . . . . . . . . . . . . . . . . . . 33 . . . . 12 Level 2 . | . . . . . . . . . . . . . . . . . . . . . . . . . . . . . . . . . Level 3 . | . . . . . . . . . . . . . . . . . . . . . . . . . . . . . . . . . Level 4 . | . . . . . . . . . . . . . . . . . . . . . . . . . . . . . . . . . Level 5 . | . . . . . . . . . . . . . . . . . . . . . . . . . . . . . . . . . High Security . | . . . . . . . . . . . . . . . . . . . . . . . . . . . . . . . . . Max Security . | . . . . . . . . . . . . . . . . . . . . . . . . . . . . . . . . . Peak Influence 398 | 10 269 95 . 40 398 175 . . . . 121 42 29 . . . . 22 . 17 . . . . 27 . 320 63 . 34 6 351 Initial 175 | . . 95 . . . 175 . . . . 44 42 29 . . . . . . . . . . . 27 . . 41 . . 6 3 Average 75 | 1 69 20 . 3 131 109 . . . . 54 42 4 . . . . 2 . 2 . . . . 3 . 98 20 . 6 4 138 Influence Increases 4866 | 40 615 . . 40 916 75 100 100 . 90 127 . 45 270 266 . . 88 . 96 5 100 . 90 42 . 546 265 . 159 12 779 Destroy 0b10 Robot/C 2300 | . 400 . . 40 480 . 80 80 . 80 . . . 220 200 . . . . . . 20 . 60 . . . 120 . 20 . 500 Destroy 0b10 Robot/NC 450 | 40 60 . . . 115 40 10 . . . 5 . 30 5 . . . 15 . 5 5 5 . . 15 . 10 . . 30 . 60 Destroy Leader 444 | . 74 . . . 140 8 10 20 . 10 . . . 30 10 . . 6 . 2 . . . . 4 . . 10 . 18 . 102 Allied During Kill 43 | . . . . . . . . . . . . . . . 11 . . . . . . . . . . . . 32 . . . . Successful Hack 150 | . 10 . . . 16 17 . . . . . . 10 . . . . 28 . 12 . . . . 9 . . 18 . 21 6 3 Disable Machine 285 | . 15 . . . 15 . . . . . 15 . . . . . . . . . . . . . . . 165 45 . 15 . 15 Destroy Structure 339 | . 26 . . . 60 10 . . . . 2 . 5 . . . . 24 . 32 . . . . 14 . 56 10 . 40 6 54 Partial Spotted 75 | . . . . . . . . . . . 15 . . . . . . . . 45 . . . . . . 15 . . . . . Lose Combat Pursuer 780 | . 30 . . . 90 . . . . . 90 . . 15 45 . . 15 . . . 75 . 30 . . 300 30 . 15 . 45 Influence Decreases 4521 | 40 369 246 . 40 529 410 110 79 63 20 76 79 87 100 436 . . 86 2 96 5 80 20 46 86 . 461 306 44 148 17 440 Entered New Map 741 | . . 151 . . . 212 20 9 63 . 26 79 13 . 33 . . . 2 . . . 20 . 17 . . 44 44 . 5 3 Time Decay 3098 | 40 359 95 . 40 519 198 80 70 . 20 50 . 74 70 310 . . 86 . 96 5 80 . 26 69 . 147 189 . 114 . 361 Lost Part 210 | . 10 . . . 10 . . . . . . . . 30 50 . . . . . . . . 20 . . . . . 20 . 70 Lost Ally 73 | . . . . . . . 10 . . . . . . . 43 . . . . . . . . . . . . 20 . . . . Purge Threat 399 | . . . . . . . . . . . . . . . . . . . . . . . . . . . 314 53 . 14 12 6 Squads Dispatched 46 | . 4 . . . 3 2 . . . . 1 . 3 . . . . 4 . 4 . 1 . . 3 . 1 5 . 3 . 12 Investigation 9 | . 1 . . . . . . . . . . . 1 . . . . 3 . 2 . . . . 1 . . 1 . . . . Extermination 13 | . . . . . . 1 . . . . . . 1 . . . . 1 . 2 . . . . 1 . 1 2 . 1 . 3 Reinforcement 14 | . 3 . . . 2 1 . . . . 1 . 1 . . . . . . . . . . . 1 . . 2 . . . 3 Assault 1 | . . . . . . . . . . . . . . . . . . . . . . 1 . . . . . . . . . . Garrison 4 | . . . . . 1 . . . . . . . . . . . . . . . . . . . . . . . . . . 3 Intercept 5 | . . . . . . . . . . . . . . . . . . . . . . . . . . . . . . 2 . 3 Searches Triggered . | . . . . . . . . . . . . . . . . . . . . . . . . . . . . . . . . . Data Miner Redirects 1 | . . . . . . . . . . . . . . . . . . . . . . . . . 1 . . . . . . . Construction Impeded 1 | . . . . . . . . . . . . . 1 . . . . . . . . . . . . . . . . . . . Haulers Reinforced 2 | . . . . . . . . . . . . . . . . . . . . . . . . . . . . . . . . 2 Active Scanning Responses . | . . . . . . . . . . . . . . . . . . . . . . . . . . . . . . . . . Cargo Convoy Interrupts . | . . . . . . . . . . . . . . . . . . . . . . . . . . . . . . . . . Stealth | -11 -10 -10 -10 -9 -8 -7 -7 -7 -7 -6 -6 -6 -6 -6 -6 -6 -5 -5 -5 -5 -5 -5 -5 -4 -4 -4 -4 -4 -4 -3 -2 -1 --------- Run | Yrd Mat Min Exi Min Mat Fac Low Low Dat Pro Fac Was Fac Low Low Zio Pro Fac Was Fac Upp Upp War Pro Fac Was Fac Arm Lab Res Res Acc Distress Signals 17 | . 3 . . . 3 . . . . . 1 . . . . . . . . . . . 1 . 1 . 2 . . 1 . 5 Communications Jammed . | . . . . . . . . . . . . . . . . . . . . . . . . . . . . . . . . . Distress Signals . | . . . . . . . . . . . . . . . . . . . . . . . . . . . . . . . . . Times Spotted 259 | . 33 . . 2 38 6 4 4 . 3 8 4 . 12 20 . . 3 5 3 . 7 3 5 5 6 35 9 . 10 1 33 Peak Tracking Total 14 | . 5 . . 2 4 1 3 3 . 2 9 4 . 6 8 . . 1 5 1 . 7 3 4 3 6 14 4 . 4 1 8 Tactical Retreats 26 | . 1 . . . 5 . . . . . 1 . . 1 2 . . 1 . . . 4 . 1 . . 6 1 . 1 . 2 Traps | -11 -10 -10 -10 -9 -8 -7 -7 -7 -7 -6 -6 -6 -6 -6 -6 -6 -5 -5 -5 -5 -5 -5 -5 -4 -4 -4 -4 -4 -4 -3 -2 -1 ------- Run | Yrd Mat Min Exi Min Mat Fac Low Low Dat Pro Fac Was Fac Low Low Zio Pro Fac Was Fac Upp Upp War Pro Fac Was Fac Arm Lab Res Res Acc Traps Triggered 7 | . 1 . . . . 1 . . . . 1 . . . . . . 1 . . . . . . 1 . 2 . . . . . Indirectly . | . . . . . . . . . . . . . . . . . . . . . . . . . . . . . . . . . Trap Hack Attempts . | . . . . . . . . . . . . . . . . . . . . . . . . . . . . . . . . . Triggered . | . . . . . . . . . . . . . . . . . . . . . . . . . . . . . . . . . Disarmed . | . . . . . . . . . . . . . . . . . . . . . . . . . . . . . . . . . Reprogrammed 4 | . . . . . . . . . . . . . . . . . . . . . . . . . . . . . . 4 . . Reused . | . . . . . . . . . . . . . . . . . . . . . . . . . . . . . . . . . Traps Extracted . | . . . . . . . . . . . . . . . . . . . . . . . . . . . . . . . . . Installed 1 | . . . . . . . . . . . . . 1 . . . . . . . . . . . . . . . . . . . Triggered . | . . . . . . . . . . . . . . . . . . . . . . . . . . . . . . . . . Most Traps Carried 4 | . . . . . . . . 1 1 1 1 1 1 3 3 3 4 4 4 4 4 4 4 4 4 4 4 4 4 4 4 4 Machines | -11 -10 -10 -10 -9 -8 -7 -7 -7 -7 -6 -6 -6 -6 -6 -6 -6 -5 -5 -5 -5 -5 -5 -5 -4 -4 -4 -4 -4 -4 -3 -2 -1 ---------- Run | Yrd Mat Min Exi Min Mat Fac Low Low Dat Pro Fac Was Fac Low Low Zio Pro Fac Was Fac Upp Upp War Pro Fac Was Fac Arm Lab Res Res Acc Machines Disabled 22 | . 1 . . 1 1 . . . . . 1 . . . 1 . . . . . . . . . . . 11 3 1 1 . 1 Max in Single Turn 11 | . 1 . . 1 1 . . . . . 1 . . . . . . . . . . . . . . . 11 1 1 1 . 1 Garrison Access 10 | . . . . . . 1 . . . . 1 . 1 . . . . 1 . 1 . . . . . . 3 . . 2 . . Machines Repaired . | . . . . . . . . . . . . . . . . . . . . . . . . . . . . . . . . . Machines Dismantled 1 | . . . . . . . . . . . . . . . . . . . . . . . . . . . . . 1 . . . Machines Sabotaged . | . . . . . . . . . . . . . . . . . . . . . . . . . . . . . . . . . Overloaded Fab Kills . | . . . . . . . . . . . . . . . . . . . . . . . . . . . . . . . . . Hacking | -11 -10 -10 -10 -9 -8 -7 -7 -7 -7 -6 -6 -6 -6 -6 -6 -6 -5 -5 -5 -5 -5 -5 -5 -4 -4 -4 -4 -4 -4 -3 -2 -1 --------- Run | Yrd Mat Min Exi Min Mat Fac Low Low Dat Pro Fac Was Fac Low Low Zio Pro Fac Was Fac Upp Upp War Pro Fac Was Fac Arm Lab Res Res Acc Machines Accessed 91 | . 2 . 2 . 8 5 . 1 4 . 2 . 6 1 2 . . 9 . 12 . . 7 . 4 . 7 6 2 7 1 3 Terminals 53 | . 2 . . . 7 4 . 1 . . 1 . 3 . 1 . . 6 . 8 . . . . 2 . 3 6 . 5 1 3 Fabricators 8 | . . . . . . . . . . . . . 2 . . . . 2 . 2 . . . . 1 . 1 . . . . . Repair Stations 2 | . . . . . . . . . . . . . . . . . . . . 1 . . . . 1 . . . . . . . Recycling Units 1 | . . . . . 1 . . . . . . . . . . . . . . . . . . . . . . . . . . . Scanalyzers . | . . . . . . . . . . . . . . . . . . . . . . . . . . . . . . . . . Garrison Access 10 | . . . . . . 1 . . . . 1 . 1 . . . . 1 . 1 . . . . . . 3 . . 2 . . Total Hacks 276 | . 6 . 2 . 18 13 . 1 30 . 3 . 10 6 7 . . 31 . 33 . . 10 . 11 . 22 13 20 28 6 6 Successful 207 | . 2 . 2 . 5 4 . 1 30 . 2 . 6 6 7 . . 15 . 30 . . 10 . 9 . 18 10 20 19 5 6 Failed 69 | . 4 . . . 13 9 . . . . 1 . 4 . . . . 16 . 3 . . . . 2 . 4 3 . 9 1 . Catastrophic 14 | . . . . . 3 1 . . . . . . 3 . . . . 3 . . . . . . 2 . . . . 2 . . Database Lockouts . | . . . . . . . . . . . . . . . . . . . . . . . . . . . . . . . . . Manual 89 | . 2 . 1 . 3 8 . . . . 1 . 3 . . . . 14 . 16 . . 2 . 3 . 12 6 1 15 2 . Terminals 159 | . 6 . . . 16 9 . 1 . . 2 . 5 . 6 . . 21 . 25 . . . . 4 . 15 13 . 24 6 6 Fabricators 21 | . . . . . . . . . . . . . 3 . . . . 9 . 5 . . . . 3 . 1 . . . . . Repair Stations 6 | . . . . . . . . . . . . . . . . . . . . 2 . . . . 4 . . . . . . . Recycling Units 2 | . . . . . 2 . . . . . . . . . . . . . . . . . . . . . . . . . . . Scanalyzers . | . . . . . . . . . . . . . . . . . . . . . . . . . . . . . . . . . Garrison Access 19 | . . . . . . 4 . . . . 1 . 2 . . . . 1 . 1 . . . . . . 6 . . 4 . . Terminal Hacks 152 | . 1 . 2 . 3 1 . 1 30 . 1 . 1 6 7 . . 7 . 17 . . 10 . 1 . 10 8 20 16 4 6 Record 54 | . . . 1 . . . . 1 11 . . . . 6 6 . . . . . . . 9 . . . . . 20 . . . Part Schematic 14 | . . . . . . . . . 10 . . . . . . . . 1 . 1 . . . . . . 1 . . 1 . . Robot Schematic 6 | . . . . . . . . . 6 . . . . . . . . . . . . . . . . . . . . . . . Robot Analysis 1 | . . . . . . . . . . . . . . . . . . . . . . . . . . . . . . 1 . . Prototype ID Bank 8 | . . . . . . . . . 3 . . . . . . . . . . . . . . . . . 2 . . 3 . . Open Door 4 | . . . . . . . . . . . . . . . 1 . . . . . . . 1 . . . . 1 . . . 1 Open DSF 1 | . . . . . . . . . . . . . 1 . . . . . . . . . . . . . . . . . . . Level Access Points 4 | . . . . . . . . . . . . . . . . . . . . . . . . . . . . 1 . 1 1 1 Branch Access Points 3 | . . . . . . . . . . . . . . . . . . . . 1 . . . . . . 1 1 . . . . Emergency Access Points 1 | . 1 . . . . . . . . . . . . . . . . . . . . . . . . . . . . . . . Machine Index 1 | . . . . . . . . . . . . . . . . . . . . . . . . . . . . 1 . . . . Terminal Index 3 | . . . . . . . . . . . . . . . . . . . . 1 . . . . . . . . . . 1 1 Fabricator Index 2 | . . . . . . . . . . . . . . . . . . . . 1 . . . . . . . . . 1 . . Repair Station Index 1 | . . . . . . . . . . . . . . . . . . . . 1 . . . . . . . . . . . . Garrison Index 2 | . . . . . . . . . . . . . . . . . . . . . . . . . . . 1 . . 1 . . Alert Level 2 | . . . . . . . . . . . . . . . . . . . . 1 . . . . . . 1 . . . . . Unreport Threat 10 | . . . . . . . . . . . . . . . . . . . . . . . . . . . 3 2 . 2 2 1 Locate Traps 8 | . . . . . 1 . . . . . . . . . . . . 2 . 3 . . . . . . 1 1 . . . . Reprogram Traps 1 | . . . . . . . . . . . . . . . . . . . . . . . . . . . . . . 1 . . Recall Investigation 3 | . . . . . . . . . . . . . . . . . . 1 . 2 . . . . . . . . . . . . Recall Extermination 4 | . . . . . . . . . . . . . . . . . . 1 . 2 . . . . . . . . . 1 . . Recall Reinforcements 3 | . . . . . . . . . . . . . . . . . . . . . . . . . 1 . . . . . . 2 Hauler Manifests 5 | . . . . . 1 . . . . . . . . . . . . 1 . 2 . . . . . . . . . 1 . . Registered Components 5 | . . . . . 1 1 . . . . 1 . . . . . . . . 1 . . . . . . . . . 1 . . Registered Prototypes 2 | . . . . . . . . . . . . . . . . . . 1 . . . . . . . . . . . 1 . . Zone Layout 3 | . . . . . . . . . . . . . . . . . . . . 1 . . . . . . . 1 . 1 . . Proto ID Catalog 1 | . . . 1 . . . . . . . . . . . . . . . . . . . . . . . . . . . . . Fabricator Hacks 17 | . . . . . . . . . . . . . 3 . . . . 5 . 5 . . . . 3 . 1 . . . . . Network Status 4 | . . . . . . . . . . . . . . . . . . 1 . 1 . . . . 1 . 1 . . . . . Load Schematic 6 | . . . . . . . . . . . . . 1 . . . . 2 . 2 . . . . 1 . . . . . . . Build 7 | . . . . . . . . . . . . . 2 . . . . 2 . 2 . . . . 1 . . . . . . . Repair Station Hacks 6 | . . . . . . . . . . . . . . . . . . . . 2 . . . . 4 . . . . . . . Scan Component 3 | . . . . . . . . . . . . . . . . . . . . 1 . . . . 2 . . . . . . . Repair 3 | . . . . . . . . . . . . . . . . . . . . 1 . . . . 2 . . . . . . . Recycling Unit Hacks 1 | . . . . . 1 . . . . . . . . . . . . . . . . . . . . . . . . . . . Retrieve Components 1 | . . . . . 1 . . . . . . . . . . . . . . . . . . . . . . . . . . . Scanalyzer . | . . . . . . . . . . . . . . . . . . . . . . . . . . . . . . . . . Garrison Access Hacks 10 | . . . . . . 1 . . . . 1 . 1 . . . . 1 . 1 . . . . . . 3 . . 2 . . Seal Access 10 | . . . . . . 1 . . . . 1 . 1 . . . . 1 . 1 . . . . . . 3 . . 2 . . Unauthorized Hacks 21 | . 1 . . . 1 2 . . . . . . 1 . . . . 2 . 5 . . . . 1 . 4 2 . 1 1 . Terminals 18 | . 1 . . . 1 2 . . . . . . 1 . . . . 2 . 5 . . . . 1 . 1 2 . 1 1 . Assimilate 4 | . . . . . . 1 . . . . . . . . . . . . . . . . . . . . . 2 . . 1 . Botnet 12 | . . . . . . 1 . . . . . . 1 . . . . 2 . 5 . . . . 1 . 1 . . 1 . . Operators 2 | . 1 . . . 1 . . . . . . . . . . . . . . . . . . . . . . . . . . . Fabricators . | . . . . . . . . . . . . . . . . . . . . . . . . . . . . . . . . . Repair Stations . | . . . . . . . . . . . . . . . . . . . . . . . . . . . . . . . . . Recycling Units . | . . . . . . . . . . . . . . . . . . . . . . . . . . . . . . . . . Scanalyzers . | . . . . . . . . . . . . . . . . . . . . . . . . . . . . . . . . . Garrison Access 3 | . . . . . . . . . . . . . . . . . . . . . . . . . . . 3 . . . . . Broadcast 1 | . . . . . . . . . . . . . . . . . . . . . . . . . . . 1 . . . . . Intercept 1 | . . . . . . . . . . . . . . . . . . . . . . . . . . . 1 . . . . . Watchers 1 | . . . . . . . . . . . . . . . . . . . . . . . . . . . 1 . . . . . Data Cores Recovered 4 | . 2 . . . 1 . . . . . 1 . . . . . . . . . . . . . . . . . . . . . Used 1 | . . . . . . . . . . . 1 . . . . . . . . . . . . . . . . . . . . . Hacking Detections 55 | . 2 . . . 7 4 . . . . 1 . 4 . . . . 8 . 9 . . . . 3 . 5 3 . 6 1 2 Full Trace Events 7 | . . . . . . . . . . . . . 1 . . . . 3 . 2 . . . . 1 . . . . . . . Feedback Events . | . . . . . . . . . . . . . . . . . . . . . . . . . . . . . . . . . Feedback Blocked . | . . . . . . . . . . . . . . . . . . . . . . . . . . . . . . . . . Robot Schematics Acquired 6 | . . . . . . . . . 6 . . . . . . . . . . . . . . . . . . . . . . . Robots Built . | . . . . . . . . . . . . . . . . . . . . . . . . . . . . . . . . . Authchips . | . . . . . . . . . . . . . . . . . . . . . . . . . . . . . . . . . Time . | . . . . . . . . . . . . . . . . . . . . . . . . . . . . . . . . . Total Robot Build Rating . | . . . . . . . . . . . . . . . . . . . . . . . . . . . . . . . . . Part Schematics Acquired 14 | . . . . . . . . . 10 . . . . . . . . 1 . 1 . . . . . . 1 . . 1 . . Parts Built 9 | . . . . . . . . . . . . . 3 . . . . 2 . 2 . . . . 2 . . . . . . . Authchips . | . . . . . . . . . . . . . . . . . . . . . . . . . . . . . . . . . Time 674 | . . . . . . . . . . . . . 269 . . . . 129 . 159 . . . . 117 . . . . . . . Total Part Build Rating 56 | . . . . . . . . . . . . . 19 . . . . 11 . 12 . . . . 14 . . . . . . . Parts Repaired 3 | . . . . . . . . . . . . . . . . . . . . 1 . . . . 2 . . . . . . . Time 247 | . . . . . . . . . . . . . . . . . . . . 95 . . . . 152 . . . . . . . Parts Recycled . | . . . . . . . . . . . . . . . . . . . . . . . . . . . . . . . . . Recycled Matter . | . . . . . . . . . . . . . . . . . . . . . . . . . . . . . . . . . Retrieved Matter . | . . . . . . . . . . . . . . . . . . . . . . . . . . . . . . . . . Retrieved Components 9 | . . . . . 9 . . . . . . . . . . . . . . . . . . . . . . . . . . . Parts Scanalyzed . | . . . . . . . . . . . . . . . . . . . . . . . . . . . . . . . . . Part Schematics Acquired . | . . . . . . . . . . . . . . . . . . . . . . . . . . . . . . . . . Parts Damaged . | . . . . . . . . . . . . . . . . . . . . . . . . . . . . . . . . . Bothacking | -11 -10 -10 -10 -9 -8 -7 -7 -7 -7 -6 -6 -6 -6 -6 -6 -6 -5 -5 -5 -5 -5 -5 -5 -4 -4 -4 -4 -4 -4 -3 -2 -1 ------------ Run | Yrd Mat Min Exi Min Mat Fac Low Low Dat Pro Fac Was Fac Low Low Zio Pro Fac Was Fac Upp Upp War Pro Fac Was Fac Arm Lab Res Res Acc Used RIF Installer . | . . . . . . . . . . . . . . . . . . . . . . . . . . . . . . . . . Robots Hacked . | . . . . . . . . . . . . . . . . . . . . . . . . . . . . . . . . . Non-combat . | . . . . . . . . . . . . . . . . . . . . . . . . . . . . . . . . . Combat . | . . . . . . . . . . . . . . . . . . . . . . . . . . . . . . . . . Robot Hacks Applied . | . . . . . . . . . . . . . . . . . . . . . . . . . . . . . . . . . Relay Couplers Released . | . . . . . . . . . . . . . . . . . . . . . . . . . . . . . . . . . Fabnet Peak Effective % . | . . . . . . . . . . . . . . . . . . . . . . . . . . . . . . . . . Robots Rewired 4 | . . . . . . . . . . . . . . . . . . . . . . . . . . . . 4 . . . . Allies Hacked 1 | . . . . . . . . . . . . . . . . . . . . . . . . . . . . 1 . . . . Hacks Repelled . | . . . . . . . . . . . . . . . . . . . . . . . . . . . . . . . . . Allies | -11 -10 -10 -10 -9 -8 -7 -7 -7 -7 -6 -6 -6 -6 -6 -6 -6 -5 -5 -5 -5 -5 -5 -5 -4 -4 -4 -4 -4 -4 -3 -2 -1 -------- Run | Yrd Mat Min Exi Min Mat Fac Low Low Dat Pro Fac Was Fac Low Low Zio Pro Fac Was Fac Upp Upp War Pro Fac Was Fac Arm Lab Res Res Acc Total Allies 11 | . . . . . . 1 . . . . . . . . 5 . . . . . . . . . . . . 4 . . 1 . Largest Group 4 | . . . . . . 1 1 . . . . . . . 2 . . . . . . . . . . . . 4 . . 1 . Highest-Rated Group 188 | . . . . . . 10 10 . . . . . . . 74 . . . . . . . . . . . . 188 . . 26 . Highest-Rated Ally 49 | . . . . . . 10 10 . . . . . . . 49 . . . . . . . . . . . . 47 . . 26 . Total Orders . | . . . . . . . . . . . . . . . . . . . . . . . . . . . . . . . . . Ally Attacks 45 | . . . . . . . . . . . . . . . 11 . . . . . . . . . . . . 34 . . . . Total Damage 1338 | . . . . . . . . . . . . . . . 356 . . . . . . . . . . . . 982 . . . . Kills 10 | . . . . . . . . . . . . . . . 4 . . . . . . . . . . . . 6 . . . . Allies Corrupted 3 | . . . . . . . . . . . . . . . 3 . . . . . . . . . . . . . . . . . Allies Melted 1 | . . . . . . . . . . . . . . . . . . . . . . . 1 . . . . . . . . . Field Lobotomies 5 | . . . . . . . . . . . . . . . 5 . . . . . . . . . . . . . . . . . Intel | -11 -10 -10 -10 -9 -8 -7 -7 -7 -7 -6 -6 -6 -6 -6 -6 -6 -5 -5 -5 -5 -5 -5 -5 -4 -4 -4 -4 -4 -4 -3 -2 -1 ------- Run | Yrd Mat Min Exi Min Mat Fac Low Low Dat Pro Fac Was Fac Low Low Zio Pro Fac Was Fac Upp Upp War Pro Fac Was Fac Arm Lab Res Res Acc Active Infowar (turns) 13446 | 8 1516 475 361 227 . 395 164 158 78 230 103 19 389 357 1125 1428 479 550 46 606 183 284 914 385 475 24 542 433 108 423 31 930 Optics 4416 | . . . . . . . . . . . . . 389 357 706 . . . . . . . . . 473 24 542 433 108 423 31 930 Sensors 5712 | . . . . . . . 164 158 78 230 13 . 2 357 952 1427 478 140 . . 183 280 914 334 2 . . . . . . . Structural 3494 | . . . . . . . . . . . . . . . . 1 1 458 46 606 . 4 . 45 474 24 496 410 70 419 31 409 Seismic 2587 | 8 1516 475 361 227 . . . . . . . . . . . . . . . . . . . . . . . . . . . . Machine Analysis 504 | . . . . . . 395 . . . . 90 19 . . . . . . . . . . . . . . . . . . . . Cloaking 188 | . . . . . . . . . . . . . . . . . . . . . . . . 6 . . 25 . 8 4 . 145 Robot Analysis Total 1 | . . . . . . . . . . . . . . . . . . . . . . . . . . . . . . 1 . . Derelict Logs Recovered 14 | . . . . . . . 1 1 . 2 . . . 1 2 2 2 . . . 1 . . 2 . . . . . . . . Drone Launches . | . . . . . . . . . . . . . . . . . . . . . . . . . . . . . . . . . Drone Recoveries . | . . . . . . . . . . . . . . . . . . . . . . . . . . . . . . . . . Exploration | -11 -10 -10 -10 -9 -8 -7 -7 -7 -7 -6 -6 -6 -6 -6 -6 -6 -5 -5 -5 -5 -5 -5 -5 -4 -4 -4 -4 -4 -4 -3 -2 -1 ------------- Run | Yrd Mat Min Exi Min Mat Fac Low Low Dat Pro Fac Was Fac Low Low Zio Pro Fac Was Fac Upp Upp War Pro Fac Was Fac Arm Lab Res Res Acc Turns Passed 17534 | 230 1516 475 361 364 3552 407 164 158 78 230 105 19 393 357 1230 1428 479 550 46 606 183 284 918 435 475 24 542 433 108 423 31 930 Spaces Moved 17299 | 110 600 294 226 210 1286 810 349 436 80 401 300 80 726 810 812 880 282 901 129 840 408 492 1055 737 711 81 811 793 196 777 62 614 Core 13 | 8 . . . . . . . . . . . . . . 5 . . . . . . . . . . . . . . . . . Treads 4326 | 102 600 294 226 210 1286 . . . . . . . . . 287 879 282 43 . . . . . . . . . . . . . 117 Legs 1 | . . . . . . . . . . . . . . . . 1 . . . . . . . . . . . . . . . . Wheels . | . . . . . . . . . . . . . . . . . . . . . . . . . . . . . . . . . Hover . | . . . . . . . . . . . . . . . . . . . . . . . . . . . . . . . . . Flight 12959 | . . . . . . 810 349 436 80 401 300 80 726 810 520 . . 858 129 840 408 492 1055 737 711 81 811 793 196 777 62 497 Fastest Speed 19 | 50 160 160 160 160 160 22 22 22 22 22 23 23 23 22 19 160 160 34 34 27 27 27 27 28 28 28 28 29 29 22 27 27 Average Speed 67 | 152 160 160 160 160 225 27 22 22 97 23 23 23 23 23 117 160 160 40 34 29 27 28 27 28 29 28 28 29 29 24 27 55 Slowest Speed 515 | 160 160 160 160 160 246 99 22 22 100 99 23 23 100 100 515 260 160 280 34 34 27 97 28 103 172 28 29 29 29 117 27 250 Overloaded Moves 8 | . . . . . . . . . . . . . . . 8 . . . . . . . . . . . . . . . . . Propulsion Burnouts . | . . . . . . . . . . . . . . . . . . . . . . . . . . . . . . . . . Robots Hopped 27 | . . . . . . 1 . 1 . 1 5 . . . . . . 2 . 7 2 . . 1 . . 2 2 . 3 . . Potential Cave-ins . | . . . . . . . . . . . . . . . . . . . . . . . . . . . . . . . . . Cave-ins Triggered . | . . . . . . . . . . . . . . . . . . . . . . . . . . . . . . . . . Exploration Rate (%) 53 | 7 79 56 61 38 71 26 59 55 68 61 10 80 17 88 87 79 44 21 82 26 69 66 94 77 19 90 27 52 96 33 2 17 Regions Visited 32 Branch Regions 17 Pre-discovered Areas 6 | . . . 1 . . . . . 1 2 . . . . 1 . 1 . . . . . . . . . . . . . . . Known Exits Taken 21 | . . . . . 1 1 1 1 1 1 . . 1 1 1 1 1 . . 1 1 1 1 1 . . 1 1 1 1 1 . Unknown Exits Taken 5 | 1 1 1 1 1 . . . . . . . . . . . . . . . . . . . . . . . . . . . . Scrap Searched 21 | . . . . . . . 2 3 . . . . . 3 3 3 . . . . 1 2 . 4 . . . . . . . . Spaces Dug 210 | . 12 . . . 13 10 24 3 . 3 2 . 5 15 17 . 5 12 . 16 . 6 . 11 7 . 17 5 . 20 2 5 Terrain Destroyed 462 | . 24 . . . 59 10 44 20 . 68 2 . 5 42 49 . 5 12 . 16 . 6 . 11 7 . 35 5 . 20 2 20 Melee 133 | . . . . . 13 10 . 3 . 3 2 . 5 . 1 . 5 12 . 16 . 6 . 1 7 . 17 5 . 20 2 5 Projectile 13 | . 3 . . . . . . . . . . . . . . . . . . . . . . 10 . . . . . . . . AOE 314 | . 21 . . . 46 . 44 17 . 65 . . . 42 48 . . . . . . . . . . . 18 . . . . 13 Terrain Rammed . | . . . . . . . . . . . . . . . . . . . . . . . . . . . . . . . . . Walls Destroyed . | . . . . . . . . . . . . . . . . . . . . . . . . . . . . . . . . . Machines Disabled . | . . . . . . . . . . . . . . . . . . . . . . . . . . . . . . . . . Actions | -11 -10 -10 -10 -9 -8 -7 -7 -7 -7 -6 -6 -6 -6 -6 -6 -6 -5 -5 -5 -5 -5 -5 -5 -4 -4 -4 -4 -4 -4 -3 -2 -1 --------- Run | Yrd Mat Min Exi Min Mat Fac Low Low Dat Pro Fac Was Fac Low Low Zio Pro Fac Was Fac Upp Upp War Pro Fac Was Fac Arm Lab Res Res Acc Total 21985 | 141 1032 298 226 226 1709 962 417 483 79 521 324 79 922 942 1026 899 296 1061 130 1156 470 616 1678 924 951 81 1073 975 229 934 72 1053 Wait 3468 | 5 327 4 . 6 184 84 54 34 . 104 12 . 164 99 115 . 4 96 . 295 59 106 606 144 207 . 192 155 7 91 5 309 Move 17221 | 109 599 293 225 209 1285 807 348 433 79 398 291 79 725 809 811 879 281 897 128 829 403 491 1054 734 711 80 806 789 195 770 61 613 Hop 21 | . . . . . . 1 . 1 . 1 4 . . . . . . 2 . 3 2 . . 1 . . 2 1 . 3 . . Pick Up 109 | 6 16 . 1 1 25 11 . 1 . . 3 . 4 . 6 4 . 12 1 2 . . 5 1 4 . 1 . . 2 . 3 Fast Attach 73 | 7 1 . . . 3 4 . . . . 1 . 1 1 8 5 . 5 . 2 . . 1 2 4 1 1 3 3 4 . 16 Attach 64 | . 3 . . 1 5 8 1 1 . 4 3 . . 4 10 2 . 2 . 1 . . 2 1 2 . 1 . 1 4 4 4 Detach 34 | . 1 . . . 1 1 1 1 . 3 1 . . 3 8 1 . 1 . . . . . 1 . . 1 1 1 3 . 5 Swap 143 | . 9 . . 4 37 4 3 2 . 2 3 . 2 4 5 4 4 6 . 3 1 6 5 13 3 . 9 1 3 5 . 5 Drop 133 | . 11 . . . 26 18 . . . . 2 . 6 . 6 4 . 20 1 2 . . 5 2 5 . 2 3 3 7 . 10 Fire 368 | 14 63 . . 5 121 . 3 5 . 6 . . . 8 41 . 2 . . . . 5 . 12 . . 1 . . 3 . 79 Melee 279 | . . . . . 19 24 7 5 . 3 4 . 19 14 16 . 5 20 . 19 5 8 . 13 15 . 21 9 . 42 2 9 Ram . | . . . . . . . . . . . . . . . . . . . . . . . . . . . . . . . . . Kick . | . . . . . . . . . . . . . . . . . . . . . . . . . . . . . . . . . Crush 6 | . 2 1 . . 3 . . . . . . . . . . . . . . . . . . . . . . . . . . . Escape Stasis 36 | . . . . . . . . . . . . . . . . . . . . . . . . . . . 36 . . . . . Rewire 13 | . . . . . . . . . . . . . . . . . . . . . . . . . . . . 13 . . . . Trap 1 | . . . . . . . . . . . . . 1 . . . . . . . . . . . . . . . . . . . Miscellaneous 16 | . . . . . . . . . . . . . . . . . . . . . . . . . . . . . 16 . . . Route ------- -11/Scrapyard -10/Materials (discovered 5 exits: [*Mat x2] / [*Min x2] / [*Sub]) -10/Mines -10/Exiles -9/Mines -8/Materials -7/Factory -7/Lower Caves -7/Lower Caves (discovered 2 exits: *Fac / *Dat) -7/Data Miner -6/Proximity Caves -6/Factory -6/Waste -6/Factory (discovered 3 exits: *Fac / *Low / DSF) -6/Lower Caves -6/Lower Caves (discovered 2 exits: *Fac / *Zio) -6/Zion -5/Proximity Caves -5/Factory -5/Waste -5/Factory (discovered 2 exits: *Upp x2) -5/Upper Caves -5/Upper Caves (discovered 2 exits: *Fac / *War) -5/Warlord -4/Proximity Caves -4/Factory (discovered 3 exits: *Res x2 / Arm) -4/Waste -4/Factory (discovered 3 exits: Upp x2 / *Arm) -4/Armory (discovered 3 exits: Res x2 / *Lab) -4/Lab -3/Research (discovered 4 exits: *Res x3 / [*Qua]) -2/Research (discovered 3 exits: *Acc x3) -1/Access To Epsilon Eridani History --------- Turn | Location | Event 3 | -11/Scrapyard | Discovered new exit (range 16) 231 | -11/Scrapyard | Entered Materials 301 | -10/Materials | Build established: Mutant 435 | -10/Materials | Discovered new exit (range 11) 695 | -10/Materials | Discovered new exit (range 4) 831 | -10/Materials | Derelicts attacked the area 864 | -10/Materials | Core integrity fell below 50% 1104 | -10/Materials | Discovered new exit (range 15) 1302 | -10/Materials | Discovered new exit (range 14) 1383 | -10/Materials | Discovered new exit (range 3) 1747 | -10/Materials | Entered Mines 1831 | -10/Mines | Met a Derelict bent on vengeance 2214 | -10/Mines | Deemed a non-threat by the Exiles lab entrance 2215 | -10/Mines | Discovered new exit (range 5) 2222 | -10/Mines | Entered Exiles 2262 | -10/Exiles | Met 8R-AWN 2285 | -10/Exiles | Met EX-HEX 2342 | -10/Exiles | Met EX-BIN 2363 | -10/Exiles | Aligned with FarCom system 2365 | -10/Exiles | Given EX-Vault access code 2402 | -10/Exiles | Opened EX-Vault 2411 | -10/Exiles | Found Field Lobotomy Kit 2443 | -10/Exiles | Warned to stay clear of 0b10 Research branches 2495 | -10/Exiles | Met EX-DEC 2503 | -10/Exiles | Learned location of Zion (-6) 2566 | -10/Exiles | Discovered new exit (range 14) 2583 | -10/Exiles | Left Exiles lab with Field Lobotomy Kit 2583 | -10/Exiles | Entered Mines 2871 | -9/Mines | Found a hidden stash of uninstalled traps 2934 | -9/Mines | Discovered new exit (range 7) 2947 | -9/Mines | Entered Materials 2947 | -8/Materials | Evolved 4 slots: Propulsion x2, Utility x2 3357 | -8/Materials | Discovered new exit (range 16) 4073 | -8/Materials | Identified exit to Factory 5980 | -8/Materials | Garrison activated, responded to threat 6499 | -8/Materials | Entered Factory 6499 | -7/Factory | Evolved 2 slots: Propulsion x2 6841 | -7/Factory | Build established: Sprinter 6843 | -7/Factory | Discovered new exit (range 15) 6901 | -7/Factory | Identified exit to Lower Caves 6906 | -7/Factory | Entered Lower Caves 6906 | -7/Lower Caves | Accompanied by 1 ally 6938 | -7/Lower Caves | Encountered a Warlord checkpoint 7045 | -7/Lower Caves | Identified exit to Lower Caves 7070 | -7/Lower Caves | Entered another Lower Caves area 7078 | -7/Lower Caves | Discovered new exit (range 12) 7091 | -7/Lower Caves | Encountered a Warlord checkpoint 7170 | -7/Lower Caves | Identified exit to Data Miner 7228 | -7/Lower Caves | Entered Data Miner 7228 | -7/Data Miner | Discovered new exit (range 6) 7246 | -7/Data Miner | Met Data Miner 7265 | -7/Data Miner | Learned location of Section 7 (-3) 7265 | -7/Data Miner | Acquired the access code to Warlord's prototype stash 7283 | -7/Data Miner | Received God Mode back door access code from Data Miner 7305 | -7/Data Miner | Identified exit to Proximity Caves 7306 | -7/Data Miner | Entered Proximity Caves 7471 | -6/Proximity Caves | Attracted the attention of an 0b10 checkpoint 7534 | -6/Proximity Caves | Discovered new exit (range 9) 7536 | -6/Proximity Caves | Identified exit to Factory 7536 | -6/Proximity Caves | Entered Factory 7536 | -6/Factory | Evolved 2 slots: Utility x2 7641 | -6/Factory | Sucked down chute 7641 | -6/Factory | Entered Waste 7646 | -6/Waste | Spotted C-40 Crusher 7649 | -6/Waste | Spotted C-40 Crusher 7653 | -6/Waste | Spotted C-40 Crusher 7653 | -6/Waste | Spotted C-40 Crusher 7655 | -6/Waste | Spotted C-40 Crusher 7655 | -6/Waste | Discovered new exit (range 11) 7656 | -6/Waste | EMP discharged 7656 | -6/Waste | System corruption reached 10% 7659 | -6/Waste | Identified exit to Factory 7660 | -6/Waste | Entered Factory 7856 | -6/Factory | Discovered new exit (range 13) 7859 | -6/Factory | Identified exit to Factory 7946 | -6/Factory | Fabricated HERF Cannon? 8016 | -6/Factory | Fabricated Cld. Cesium-ion Thruster (x1) 8031 | -6/Factory | Discovered new exit (range 3) 8031 | -6/Factory | Identified exit to Lower Caves 8034 | -6/Factory | Identified exit to DSF 8038 | -6/Factory | Build established: Hacker-Sprinter 8053 | -6/Factory | Entered Lower Caves 8086 | -6/Lower Caves | Learned Research trap positions 8086 | -6/Lower Caves | Learned Armory trap positions 8086 | -6/Lower Caves | Learned Factory stockpile data 8086 | -6/Lower Caves | Learned Factory garrison access intel 8315 | -6/Lower Caves | Learned Factory non-interactive machine intel 8321 | -6/Lower Caves | Destroyed 11 combat bots 8326 | -6/Lower Caves | Lost 3 parts (1n1u1w) 8406 | -6/Lower Caves | Discovered new exit (range 16) 8409 | -6/Lower Caves | Identified exit to Lower Caves 8410 | -6/Lower Caves | Entered another Lower Caves area 8496 | -6/Lower Caves | Discovered exit to Factory (range 9) 8659 | -6/Lower Caves | Attracted the attention of an 0b10 base 8665 | -6/Lower Caves | Assimilated Y-64 Sentinel with FLK Orb 8690 | -6/Lower Caves | Assimilated G-50 Soldier with FLK Orb 8721 | -6/Lower Caves | Learned Factory emergency access door positions 8761 | -6/Lower Caves | Learned location of Extension (-6) 8761 | -6/Lower Caves | Learned Extension emergency access door positions 8761 | -6/Lower Caves | Learned Armory stockpile data 8761 | -6/Lower Caves | Learned Research security intel 9026 | -6/Lower Caves | Build established: Assassin 9091 | -6/Lower Caves | Attacked by a faux Warlord 9092 | -6/Lower Caves | Assimilated VC-RGG(M) with FLK Orb 9095 | -6/Lower Caves | Assimilated WN-IYI(l) with FLK Orb 9098 | -6/Lower Caves | Assimilated M9-7Q3(b) with FLK Orb 9139 | -6/Lower Caves | Lost 3 allies 9487 | -6/Lower Caves | Build established: Scavenger-Mutant 9508 | -6/Lower Caves | Encountered a Warlord checkpoint 9578 | -6/Lower Caves | Learned Factory security intel 9635 | -6/Lower Caves | Discovered new exit (range 5) 9638 | -6/Lower Caves | Identified exit to Zion 9640 | -6/Lower Caves | Entered Zion 9709 | -6/Zion | Given the Hacking Drone Bay 9728 | -6/Zion | Found Prototype Device 9747 | -6/Zion | System corruption cleaned by Quarantine Array 9749 | -6/Zion | Identified Hacking Drone Bay 10075 | -6/Zion | Learned Factory trap positions 10166 | -6/Zion | Rebuked by Imprinter 10398 | -6/Zion | Build established: Hacker-Mutant 10809 | -6/Zion | Found GAL Module 11011 | -6/Zion | Discovered new exit (range 16) 11035 | -6/Zion | Acquired unknown access codes intercepted by a Zionite 11065 | -6/Zion | Identified exit to Proximity Caves 11068 | -6/Zion | Entered Proximity Caves 11183 | -5/Proximity Caves | Learned location of Warlord (-5) 11223 | -5/Proximity Caves | Build established: Scavenger-Mutant 11547 | -5/Proximity Caves | Entered Factory 11547 | -5/Factory | Evolved 2 slots: Utility x2 11548 | -5/Factory | Loaded intel: 85 trap records 11552 | -5/Factory | Loaded intel: 237 non-interactive machine locations 11553 | -5/Factory | Loaded intel: 4 garrison access locations 11707 | -5/Factory | Discovered new exit (range 11) 11712 | -5/Factory | Identified exit to Upper Caves 11848 | -5/Factory | Fabricated Cld. Cesium-ion Thruster? 11932 | -5/Factory | Build established: Hacker-Mutant 12021 | -5/Factory | Fabricated Adv. Hacking Suite (x1) 12097 | -5/Factory | Sucked down chute 12097 | -5/Factory | Entered Waste 12104 | -5/Waste | Spotted C-40 Crusher 12104 | -5/Waste | Spotted C-40 Crusher 12105 | -5/Waste | Spotted C-40 Crusher 12112 | -5/Waste | EMP discharged 12127 | -5/Waste | Spotted C-40 Crusher 12133 | -5/Waste | Discovered new exit (range 16) 12136 | -5/Waste | Spotted C-40 Crusher 12142 | -5/Waste | Identified exit to Factory 12143 | -5/Waste | Entered Factory 12222 | -5/Factory | Fabricated Adv. Hacking Suite? 12487 | -5/Factory | Fabricated Adv. Hacking Suite? 12655 | -5/Factory | Repaired Broken Q-thruster? 12698 | -5/Factory | Spotted B-75 Beast 12701 | -5/Factory | Build established: Wizard-Sprinter 12749 | -5/Factory | Entered Upper Caves 12776 | -5/Upper Caves | Learned Factory security intel 12853 | -5/Upper Caves | Spotted B-75 Beast 12929 | -5/Upper Caves | Discovered new exit (range 15) 12932 | -5/Upper Caves | Identified exit to Upper Caves 12932 | -5/Upper Caves | Entered another Upper Caves area 12995 | -5/Upper Caves | Attracted the attention of an 0b10 checkpoint 13001 | -5/Upper Caves | Discovered new exit (range 15) 13169 | -5/Upper Caves | Found DCF Scrap (14 items) 13195 | -5/Upper Caves | Attracted the attention of an 0b10 outpost 13214 | -5/Upper Caves | Discovered new exit (range 5) 13215 | -5/Upper Caves | Identified exit to Warlord 13216 | -5/Upper Caves | Entered Warlord 13226 | -5/Warlord | System corruption cleaned by Quarantine Array 13245 | -5/Warlord | Visited the Vortex Lab 13248 | -5/Warlord | Warlord's base attacked by MAIN.C 13271 | -5/Warlord | Opened Warlord's prototype stash 13279 | -5/Warlord | Found Prototype Hackware 13281 | -5/Warlord | Found Prototype Device 13281 | -5/Warlord | Identified Exp. Phase Shifter 13294 | -5/Warlord | Met Warlord 13598 | -5/Warlord | Warlord forces counterattacked 13923 | -5/Warlord | Warlord base infiltrated, sounded retreat 13994 | -5/Warlord | Spotted Striker 14047 | -5/Warlord | Spotted B-86 Titan 14132 | -5/Warlord | Discovered new exit (range 9) 14134 | -5/Warlord | Identified exit to Proximity Caves 14134 | -5/Warlord | Entered Proximity Caves 14151 | -4/Proximity Caves | Lost 31 allies 14203 | -4/Proximity Caves | Learned Research garrison access intel 14565 | -4/Proximity Caves | Discovered new exit (range 16) 14569 | -4/Proximity Caves | Identified exit to Factory 14569 | -4/Proximity Caves | Entered Factory 14569 | -4/Factory | Evolved 2 slots: Utility x2 14569 | -4/Factory | Identified System Mapper 14570 | -4/Factory | Identified exit to Research 14570 | -4/Factory | Identified exit to Armory 14614 | -4/Factory | Incoming investigation squad redirected 14703 | -4/Factory | Fabricated Lrn. Sensor Array? 14759 | -4/Factory | Repaired Imp. Medium Armor Plating 14858 | -4/Factory | Build established: Wizard-Scout 14869 | -4/Factory | Repaired Centrium Light Armor Plating 14934 | -4/Factory | Discovered exit to Research (range 3) 15044 | -4/Factory | Manually triggered Chute Trap 15044 | -4/Factory | Sucked down chute 15044 | -4/Factory | Entered Waste 15052 | -4/Waste | Spotted C-40 Crusher 15052 | -4/Waste | Spotted C-40 Crusher 15053 | -4/Waste | Spotted C-40 Crusher 15054 | -4/Waste | Spotted C-40 Crusher 15059 | -4/Waste | EMP discharged 15063 | -4/Waste | Spotted C-40 Crusher 15065 | -4/Waste | Spotted C-40 Crusher 15066 | -4/Waste | Discovered new exit (range 10) 15068 | -4/Waste | Identified exit to Factory 15068 | -4/Waste | Entered Factory 15081 | -4/Factory | Identified exit to Upper Caves 15610 | -4/Factory | Entered Armory 15611 | -4/Armory | Met VL-GR5, who suggested a friendly competition 15611 | -4/Armory | Loaded intel: 51 trap records 15659 | -4/Armory | Spotted B-86 Titan 15854 | -4/Armory | Lost the competition with VL-GR5 15898 | -4/Armory | Found Prototype Launcher 15898 | -4/Armory | Identified Tesla Bomb Launcher 16031 | -4/Armory | Found Unknown Launcher 16031 | -4/Armory | Identified Fusion Bomb Launcher 16040 | -4/Armory | Discovered new exit (range 4) 16043 | -4/Armory | Identified exit to Lab 16043 | -4/Armory | Entered Lab 16043 | -4/Lab | Discovered exit to Research (range 9) 16047 | -4/Lab | Unable to decrypt terminal 16079 | -4/Lab | Gained access to the hidden lab's interior 16082 | -4/Lab | Detected by scanners 16083 | -4/Lab | Unable to decrypt terminal 16102 | -4/Lab | Found Prototype Energy Cannon 16102 | -4/Lab | Identified Warp Cannon 16105 | -4/Lab | Found Prototype Energy Cannon 16105 | -4/Lab | Identified Potential Cannon 16109 | -4/Lab | Found Prototype Hackware 16109 | -4/Lab | Identified Quantum Router 16111 | -4/Lab | Found Prototype Protection 16111 | -4/Lab | Identified Med. Regenerative Plating 16127 | -4/Lab | Unable to decrypt terminal 16151 | -4/Lab | Entered Research 16151 | -3/Research | Evolved 2 slots: Power x1, Propulsion x1 16152 | -3/Research | Loaded intel: 106 trap records 16154 | -3/Research | Loaded intel: 4 garrison access locations 16214 | -3/Research | Identified exit to Research 16487 | -3/Research | Intercept squad dispatched 16515 | -3/Research | Spotted Tracker 16523 | -3/Research | Destroyed Tracker 16524 | -3/Research | Spotted Combat Programmer 16565 | -3/Research | Discovered new exit (range 18) 16574 | -3/Research | Entered another Research area 16574 | -2/Research | Warlord forces began assault on 0b10 16574 | -2/Research | Evolved 2 slots: Utility x2 16592 | -2/Research | Identified exit to Access 16605 | -2/Research | Entered Access 16605 | -1/Access | Evolved 2 slots: Utility x2 16645 | -1/Access | Identified exit to Surface 16856 | -1/Access | Lost 3 parts (3u) 16984 | -1/Access | Spotted B-99 Colossus 17000 | -1/Access | Destroyed B-99 Colossus 17007 | -1/Access | Spotted B-99 Colossus 17033 | -1/Access | Destroyed B-99 Colossus 17059 | -1/Access | Found Prototype Ballistic Gun 17059 | -1/Access | Identified Multirail 17063 | -1/Access | Found Multirail 17077 | -1/Access | Found Hvy. Reflective Plating 17130 | -1/Access | Build established: Wizard-Mutant 17462 | -1/Access | Build established: Scavenger-Mutant 17471 | -1/Access | Intercept squad dispatched 17477 | -1/Access | Spotted Tracker 17477 | -1/Access | Spotted Tracker 17492 | -1/Access | Destroyed Tracker 17501 | -1/Access | Destroyed Tracker 17519 | -1/Access | Lost 3 parts (3u) 17533 | -1/Access | Found Prototype Energy Gun 17533 | -1/Access | Identified Immobilizer 17535 | *** | Escaped! Last Messages --------------- 17498_ Penetrated by Slug. 17501_ Slug penetrates Wall. 17501_ Slug penetrates Tracker. 17501_ Tracker destroyed. 17501_ K-01 Serf collects debris. 17501_ Penetrated by Slug. 17504_ Slug penetrates H-88 Terminator. 17504_ H-88 Terminator suffers critical hit (Destroy). 17504_ H-88 Terminator destroyed. 17505_ K-01 Serf collects debris. 17514_ Ended siege mode. 17514_ K-01 Serf collects debris. 17520_ Acquired 66 matter. 17521_ K-01 Serf collects debris. 17522_ Slug penetrates Reinforced Barrier. 17526_ Acquired 49 matter. 17528_ K-01 Serf collects debris. 17533_ Acquired Prototype Energy Gun. 17533_ Identified Immobilizer. Map ----- +----------------------------------------------------+ | ???????????## # ?????????????????????????????????? | | ???????????## # ?????????????????????????????????? | | ??????????? ##?????????????????????????????????? | | ???????????## ##?????????????????????????????????? | | ???????????## ##?????????????????????????????????? | | ???????????## ##?????????????????????????????????? | | ???????????## ##?????????????????????????????????? | | ???????????## ##?????????????????????????????????? | | ??????????## ##?????????????????????????????????? | | ###### ######################## ?? ???????? | | #+########### ######################## ????? | | ????? | | % w A % ????? | | #+### #+############% %""####??????????????? | | ## # #### ""###???????????????? | | ## # % #### %""##????????????????? | | "## # #### T##????????????????? | | ""## # #### ""##????????????????? | | ""## # #### % ""###???????????????? | | ""## #######+###### ""###???????????????? | | ""# # ###=u[ ##???????????????? | | T"# #] ####%!! ###???????????????? | | ""# " # ! ####=%*% ###???????????????? | | ""# # !####%!= ##????????????????? | | ""## #######+####### * ##????????????????? | | ""## ####### ####### @" ##????????????????? | | ?## ?????## ##???## [!" ##????????????????? | | ?## ?????## ##???## !|% ##????????????????? | | ## #????## ##???## [*! ##????????????????? | | #####+#????## ##???## %%% ##????????????????? | | ???? # ##???## !%= ##??????w?????????? | | ??????????? # ##???## % =* ##????????????????? | | ??????????? # ##????# != #?????????????????? | | ??????????? # ##????# #?????????????????? | | ??????????? / ##????# !=k #?????????????????? | | ??????????? # ##????# * = #?????????????????? | | ???????????## ##????# ! =! #?????????????????? | | ????????????? ??????# !=%== #?????????????????? | | ????????????? ??????# !!]* = #?????????????????? | | ????????????? ??????# ==!%=* #?????????????????? | | ????????????? ??????# !*%!%|! #?????????????????? | | ????????????? ??????####%==!####?????????????????? | | ????????????? ????????##=![[#????????????????????? | | ????????????? ?????????#%*=%#????????????????????? | | ????????????? ?????? [*![*+ ???????????????????? | | ????????????? ?? =!!* # ??????????????????? | | ???????????? # ?????????????????? | | ???????? #? ""????????????????? | | ?????? ##########+########? " ???????????????? | | ???????????????????????? ?????? ??????????????? | +----------------------------------------------------+ Best States ------------- Heat Dissipation 56 Coolant Potential 100 Energy Generation 43 Energy Capacity 385 Matter Stores 300 Matter Capacity 300 Sight Range 22 Robot Scan Range 15 Terrain Scan Density 10 Cloak Strength 3 Additional Mass Support 9 Armor Coverage 1650 Resistance: TH 25 Phase Shifting 20 Evasion (%) 76 Targeting Accuracy 16 Melee Accuracy 14 Target Analysis 12 Recoil Reduction 6 Offensive Hacking 76 Defensive Hacking 39 Trap Extractor Capacity 6 Item Schematics ----------------- Combat Drone Bay | -7/Data Miner | Free Lgt. Regenerative Plating | -7/Data Miner | Free Cld. Cesium-ion Thruster | -7/Data Miner | Free Exp. Targeting Computer | -7/Data Miner | Free Force Rifle | -7/Data Miner | Free Point Defense System | -7/Data Miner | Free Antigrav System | -7/Data Miner | Free Enh. Gauss Cannon | -7/Data Miner | Free Adv. System Shield | -7/Data Miner | Free Myomer Leg | -7/Data Miner | Free Adv. Hacking Suite | -5/Factory | Hacked Lrn. Sensor Array | -5/Factory | Hacked Q-thruster | -4/Factory | Hacked Power Sword | -3/Research | Hacked Robot Schematics ------------------ H-55 Commando | -7/Data Miner | Free M-14 Sweeper | -7/Data Miner | Free M-22 Extractor | -7/Data Miner | Free A-15 Conveyor | -7/Data Miner | Free B-60 Warrior | -7/Data Miner | Free H-66 Slayer | -7/Data Miner | Free Fabricated ------------ HERF Cannon | x2 | -6/Factory | Preloaded Cld. Cesium-ion Thruster | x1 | -6/Factory Cld. Cesium-ion Thruster | x1 | -5/Factory Adv. Hacking Suite | x1 | -5/Factory Adv. Hacking Suite | x1 | -5/Factory Adv. Hacking Suite | x1 | -5/Factory Lrn. Sensor Array | x2 | -4/Factory Repaired ---------- Q-thruster | 67% | -5/Factory | Broken Imp. Medium Armor Plating | 18% | -4/Factory Centrium Light Armor Plating | 32% | -4/Factory Alien Tech Used ----------------- None Achievements -------------- None Challenges ------------ None Game ------ Seed BeamMicrodissipatorSplitter Manual? 0 Play Time 03:31:50 Cumulative 303.2 hours Start 2025.05.23 @ 05:35:21 End 2025.05.24 @ 02:37:52 Sessions 5 Manual Loads 0 Difficulty Rogue Special Mode None Game No. 142 Rogue 79 Adventurer 16 Explorer 47 Win Type 0 Total 40 Types 23/5/5/1/0/1/2/1/1/1 Lore% 89 Gallery% 87 Achievement% 83 Wizard Run 0 Options --------- Layout 2 ASCII 0 Keyboard 0 Movement Mouse Keybinds 0 Fullscreen 1 Font 32/Tamsyn Map View 50x44 Zoom Use 0% Tactical HUD 1 Map Filters NONE Filters NONE Steam 1 RUN: 10ddbaee-a47f-49dc-b4d4-487f4a082fa5